bitfinex-derivatives/quotes_BTCF0:USTF0_20241226
["timestamp","ask_amount","ask_price","bid_price","bid_amount"]
[1735182621215,0.040546,98737.0,98730.0,0.22203292]
[1735182621408,0.3618,98738.0,98730.0,0.22203292]
[1735182621409,0.48090296,98738.0,98732.0,0.18148492]
[1735182621607,0.040547,98735.0,98732.0,0.18148492]
[1735182622813,0.040547,98735.0,98730.0,0.040548]
[1735182623914,0.041547,98735.0,98730.0,0.040548]
[1735182629215,0.001,98735.0,98733.0,0.040547]
[1735182629625,0.001,98735.0,98729.0,0.18148492]
[1735182629626,0.040548,98730.0,98729.0,0.18148492]
[1735182630518,0.040548,98730.0,98728.0,0.18148492]
[1735182631226,0.041548,98730.0,98728.0,0.18148492]
[1735182631828,0.1511287,98730.0,98718.0,0.00917683]
[1735182632020,0.3608,98719.0,98715.0,0.18148492]
[1735182632325,0.040554,98716.0,98715.0,0.18148492]
[1735182633319,0.040555,98714.0,98713.0,0.19072369]
[1735182633515,0.040555,98714.0,98713.0,0.18148492]
[1735182634022,0.3608,98719.0,98713.0,0.18148492]
[1735182634329,0.401353,98719.0,98715.0,0.001]
[1735182634528,0.040554,98718.0,98715.0,0.001]
[1735182635028,0.040554,98718.0,98714.0,0.040555]
[1735182635229,0.3608,98719.0,98714.0,0.040555]
[1735182635230,0.16087427,98717.0,98714.0,0.040555]
[1735182635730,0.16087427,98717.0,98715.0,0.001]
[1735182636721,0.16087427,98717.0,98715.0,0.002]
[1735182636922,0.040554,98717.0,98715.0,0.002]
[1735182637230,0.040554,98717.0,98715.0,0.001]
[1735182637633,0.3608,98719.0,98710.0,0.18158595]
[1735182637931,0.401356,98711.0,98710.0,0.18158595]
[1735182638625,0.401356,98711.0,98710.0,0.00010103]
[1735182639136,0.401356,98711.0,98710.0,0.00310103]
[1735182639835,0.401356,98711.0,98710.0,0.00510103]
[1735182640336,0.401356,98711.0,98710.0,0.00310103]
[1735182640525,0.401356,98711.0,98710.0,0.00510103]
[1735182646332,0.040562,98697.0,98696.0,0.25848492]
[1735182646534,0.401362,98697.0,98696.0,0.18148492]
[1735182647429,0.401362,98697.0,98696.0,0.18648492]
[1735182647631,0.401362,98697.0,98696.0,0.014]
[1735182648141,0.401362,98697.0,98696.0,0.013]
[1735182649542,0.401362,98697.0,98696.0,0.008]
[1735182649739,0.401362,98697.0,98696.0,0.012]
[1735182659539,0.49142483,98697.0,98696.0,0.012]
[1735182661034,0.3608,98697.0,98696.0,0.012]
[1735182661945,0.12032027,98701.0,98700.0,0.040561]
[1735182662242,0.5109287,98711.0,98697.0,0.1573]
[1735182662429,0.5109287,98711.0,98708.0,0.040557]
[1735182662834,0.5109287,98711.0,98709.0,0.040557]
[1735182663743,0.1501287,98711.0,98709.0,0.040557]
[1735182663943,0.1501287,98711.0,98709.0,0.041557]
[1735182664147,0.09026069,98712.0,98709.0,0.041557]
[1735182664745,0.09026069,98712.0,98709.0,0.043557]
[1735182665338,0.040555,98715.0,98709.0,0.043557]
[1735182665546,0.040555,98715.0,98709.0,0.042557]
[1735182665748,0.040555,98715.0,98709.0,0.043557]
[1735182665946,0.040555,98714.0,98709.0,0.043557]
[1735182666356,0.040555,98714.0,98709.0,0.042557]
[1735182666544,0.040555,98714.0,98710.0,0.040557]
[1735182668146,0.040555,98714.0,98710.0,0.042557]
[1735182669148,0.040555,98714.0,98710.0,0.043557]
[1735182669753,0.09026069,98717.0,98710.0,0.043557]
[1735182669942,0.040556,98713.0,98710.0,0.043557]
[1735182671150,0.040556,98712.0,98710.0,0.043557]
[1735182671342,0.040556,98712.0,98710.0,0.003]
[1735182677154,0.3608,98711.0,98710.0,0.003]
[1735182677657,0.040559,98705.0,98704.0,0.18148492]
[1735182677864,0.401359,98705.0,98704.0,0.18148492]
[1735182678067,0.040561,98699.0,98698.0,0.24242003]
[1735182678270,0.040561,98699.0,98694.0,0.18193298]
[1735182678271,0.401361,98699.0,98694.0,0.18193298]
[1735182678468,0.040563,98695.0,98694.0,0.18193298]
[1735182678866,0.040565,98690.0,98688.0,0.24242003]
[1735182679067,0.401365,98690.0,98688.0,0.24242003]
[1735182679958,0.401365,98690.0,98684.0,0.0776]
[1735182680155,0.401365,98690.0,98689.0,0.00651981]
[1735182681169,0.402365,98690.0,98689.0,0.01551981]
[1735182681976,0.3618,98690.0,98689.0,0.05608481]
[1735182683758,0.001,98690.0,98689.0,0.05608481]
[1735182684571,0.1501287,98710.0,98689.0,0.31551981]
[1735182684758,0.1501287,98710.0,98709.0,0.040557]
[1735182685672,0.1501287,98710.0,98702.0,0.04056]
[1735182685868,0.0887043,98720.0,98701.0,0.3608]
[1735182685869,0.04056,98703.0,98701.0,0.3608]
[1735182686172,0.3608,98711.0,98701.0,0.3608]
[1735182686375,0.040558,98708.0,98701.0,0.3608]
[1735182687574,0.040558,98708.0,98701.0,0.37045263]
[1735182687968,0.3608,98711.0,98701.0,0.37045263]
[1735182688164,0.3608,98711.0,98701.0,0.37645263]
[1735182688362,0.3608,98711.0,98701.0,0.37945263]
[1735182689080,0.040559,98706.0,98701.0,0.37645263]
[1735182689275,0.040559,98706.0,98701.0,0.37945263]
[1735182690472,0.4495043,98711.0,98701.0,0.37945263]
[1735182690682,0.04056,98703.0,98701.0,0.3698]
[1735182690870,0.04056,98703.0,98701.0,0.3688]
[1735182692267,0.3608,98702.0,98701.0,0.008]
[1735182693770,0.3608,98702.0,98701.0,0.003]
[1735182693968,0.3608,98702.0,98701.0,0.008]
[1735182706984,0.1509687,98710.0,98701.0,0.008]
[1735182706985,0.1501287,98710.0,98701.0,0.008]
[1735182707191,0.1501287,98710.0,98702.0,0.0777]
[1735182707491,0.3608,98710.0,98703.0,0.04056]
[1735182707693,0.3608,98710.0,98702.0,0.0777]
[1735182707883,0.3608,98710.0,98704.0,0.040559]
[1735182708085,0.401357,98710.0,98704.0,0.040559]
[1735182708283,0.040559,98704.0,98702.0,0.0777]
[1735182710102,0.040559,98704.0,98702.0,0.0857]
[1735182711606,0.040559,98704.0,98702.0,0.09539865]
[1735182711890,0.040562,98696.0,98687.0,0.3034975]
[1735182712097,0.401366,98688.0,98687.0,0.3034975]
[1735182713093,0.45537042,98688.0,98687.0,0.005]
[1735182713293,0.45637042,98688.0,98687.0,0.014]
[1735182715085,0.402366,98688.0,98687.0,0.014]
[1735182715685,0.3618,98688.0,98680.0,0.040569]
[1735182715886,0.3618,98688.0,98685.0,0.040567]
[1735182716085,0.3618,98688.0,98686.0,0.0795]
[1735182716297,0.3618,98688.0,98687.0,0.040566]
[1735182717497,0.3618,98688.0,98687.0,0.049566]
[1735182718192,0.001,98688.0,98687.0,0.054566]
[1735182719402,0.001,98688.0,98687.0,0.02392068]
[1735182726496,0.041566,98688.0,98687.0,0.014]
[1735182727995,0.041566,98688.0,98671.0,0.0386244]
[1735182727996,0.040572,98672.0,98671.0,0.0386244]
[1735182728192,0.001,98688.0,98670.0,0.3034975]
[1735182728193,0.3608,98676.0,98670.0,0.3034975]
[1735182728394,0.401371,98676.0,98666.0,0.040575]
[1735182728797,0.040571,98675.0,98666.0,0.040575]
[1735182728999,0.040571,98675.0,98667.0,0.0386244]
[1735182729199,0.001,98672.0,98671.0,0.008]
[1735182729593,0.002,98672.0,98671.0,0.01]
[1735182729805,0.001,98672.0,98671.0,0.002]
[1735182730102,0.001,98672.0,98666.0,0.049575]
[1735182730303,0.042571,98675.0,98667.0,0.002]
[1735182730693,0.001,98672.0,98671.0,0.008]
[1735182730893,0.002,98672.0,98671.0,0.01]
[1735182731705,0.002,98672.0,98671.0,0.0903]
[1735182732305,0.001,98675.0,98671.0,0.0803]
[1735182732498,0.002,98675.0,98671.0,0.0803]
[1735182733102,0.001,98672.0,98671.0,0.0873]
[1735182733604,0.002,98672.0,98671.0,0.0893]
[1735182733803,0.001,98672.0,98671.0,0.0893]
[1735182734115,0.001,98672.0,98671.0,0.4501]
[1735182734806,0.002,98675.0,98672.0,0.040572]
[1735182735111,0.002,98675.0,98673.0,0.040572]
[1735182736399,0.001,98675.0,98673.0,0.040572]
[1735182736603,0.001,98675.0,98674.0,0.0386244]
[1735182737000,0.1202903,98688.0,98674.0,0.0386244]
[1735182737310,0.1202903,98688.0,98678.0,0.0887043]
[1735182737607,0.1202903,98688.0,98679.0,0.1128244]
[1735182737808,0.402203,98695.0,98679.0,0.1128244]
[1735182738110,0.401363,98695.0,98680.0,0.040569]
[1735182738408,0.040563,98695.0,98688.0,0.040566]
[1735182739109,0.1608533,98695.0,98688.0,0.040566]
[1735182739810,0.1608533,98695.0,98688.0,0.044566]
[1735182739998,0.1608533,98695.0,98688.0,0.004]
[1735182740198,0.1202903,98694.0,98689.0,0.040565]
[1735182741399,0.1212903,98694.0,98689.0,0.042565]
[1735182741597,0.1212903,98694.0,98689.0,0.002]
[1735182741807,0.1212903,98694.0,98690.0,0.040565]
[1735182742198,0.1212903,98694.0,98689.0,0.002]
[1735182742409,0.1212903,98694.0,98691.0,0.040564]
[1735182743401,0.1202903,98694.0,98691.0,0.040564]
[1735182743603,0.1212903,98694.0,98691.0,0.040564]
[1735182744101,0.1202903,98693.0,98691.0,0.042564]
[1735182745103,0.1202903,98693.0,98691.0,0.046564]
[1735182745705,0.1202903,98693.0,98691.0,0.042564]
[1735182745907,0.1618543,98693.0,98691.0,0.046564]
[1735182749115,0.5226543,98693.0,98691.0,0.006]
[1735182749707,0.5226543,98693.0,98691.0,0.046564]
[1735182750215,0.402364,98693.0,98691.0,0.046564]
[1735182751011,0.402364,98693.0,98691.0,0.006]
[1735182751218,0.12042066,98692.0,98691.0,0.006]
[1735182752310,0.12042066,98692.0,98689.0,0.040565]
[1735182752511,0.16198466,98692.0,98691.0,0.006]
[1735182753511,0.16198466,98692.0,98691.0,0.004]
[1735182754713,0.040565,98690.0,98689.0,0.006]
[1735182755021,0.040565,98690.0,98689.0,0.004]
[1735182755422,0.040566,98687.0,98686.0,0.00952049]
[1735182755621,0.001,98692.0,98678.0,0.0386244]
[1735182755823,0.040568,98683.0,98678.0,0.0386244]
[1735182756011,0.040568,98683.0,98679.0,0.0386244]
[1735182756320,0.040568,98683.0,98678.0,0.0791944]
[1735182756526,0.040565,98689.0,98678.0,0.0386244]
[1735182756711,0.12041377,98688.0,98684.0,0.040567]
[1735182758213,0.12041377,98688.0,98680.0,0.40191052]
[1735182758214,0.001,98683.0,98680.0,0.40243052]
[1735182758413,0.001,98683.0,98681.0,0.08167952]
[1735182758823,0.001,98688.0,98684.0,0.002]
[1735182759521,0.001,98683.0,98682.0,0.040568]
[1735182759711,0.001,98683.0,98682.0,0.08155681]
[1735182760927,0.16097877,98691.0,98684.0,0.005]
[1735182761121,0.001,98688.0,98685.0,0.040567]
[1735182761520,0.16097877,98691.0,98685.0,0.040567]
[1735182761718,0.12041377,98691.0,98689.0,0.040565]
[1735182762115,0.3608,98693.0,98690.0,0.11828881]
[1735182762311,0.3608,98693.0,98691.0,0.08155281]
[1735182762716,0.3608,98693.0,98692.0,0.04098881]
[1735182763015,0.12052002,98695.0,98692.0,0.04098881]
[1735182763321,0.12052002,98695.0,98692.0,0.08155281]
[1735182763622,0.12052002,98695.0,98693.0,0.04098881]
[1735182763822,0.12052002,98695.0,98694.0,0.04098881]
[1735182764426,0.12052002,98696.0,98692.0,0.040564]
[1735182764623,0.12052002,98696.0,98692.0,0.08155281]
[1735182764928,0.12052002,98696.0,98692.0,0.040564]
[1735182765122,0.001,98695.0,98694.0,0.002]
[1735182765617,0.12152002,98696.0,98694.0,0.003]
[1735182766118,0.12052002,98696.0,98694.0,0.003]
[1735182766426,0.001,98695.0,98694.0,0.005]
[1735182767918,0.12152002,98696.0,98694.0,0.005]
[1735182768120,0.12152002,98696.0,98694.0,0.002]
[1735182768314,0.12152002,98696.0,98694.0,0.003]
[1735182768525,0.001,98695.0,98694.0,0.005]
[1735182769018,0.12152002,98696.0,98694.0,0.005]
[1735182770225,0.12152002,98696.0,98694.0,0.045563]
[1735182770728,0.001,98695.0,98694.0,0.045563]
[1735182771729,0.12052002,98696.0,98694.0,0.043563]
[1735182771931,0.12152002,98696.0,98694.0,0.042563]
[1735182772229,0.001,98696.0,98694.0,0.045563]
[1735182772417,0.001,98695.0,98694.0,0.045563]
[1735182773924,0.12052002,98697.0,98694.0,0.043563]
[1735182774126,0.001,98696.0,98694.0,0.042563]
[1735182774324,0.001,98696.0,98694.0,0.045563]
[1735182774526,0.12052002,98697.0,98694.0,0.043563]
[1735182774832,0.001,98695.0,98694.0,0.045563]
[1735182775129,0.12052002,98697.0,98694.0,0.043563]
[1735182775330,0.001,98696.0,98694.0,0.045563]
[1735182776832,0.12052002,98697.0,98694.0,0.043563]
[1735182777022,0.12152002,98697.0,98696.0,0.040562]
[1735182777528,0.12052002,98697.0,98696.0,0.040562]
[1735182778231,0.12152002,98697.0,98696.0,0.040562]
[1735182778621,0.12152002,98697.0,98696.0,0.042562]
[1735182778821,0.12152002,98697.0,98696.0,0.045562]
[1735182783640,0.001,98697.0,98696.0,0.045562]
[1735182783821,0.001,98697.0,98696.0,0.005]
[1735182784028,0.040567,98684.0,98683.0,0.03709965]
[1735182784233,0.3608,98684.0,98677.0,0.364797]
[1735182784531,0.04057,98678.0,98677.0,0.364197]
[1735182785038,0.040574,98669.0,98661.0,0.00052]
[1735182785235,0.3608,98668.0,98660.0,0.040577]
[1735182786533,0.12033174,98666.0,98660.0,0.040577]
[1735182787338,0.12033174,98666.0,98663.0,0.00852022]
[1735182787638,0.3628,98668.0,98663.0,0.00852022]
[1735182788027,0.3608,98668.0,98663.0,0.00152022]
[1735182788227,0.002,98666.0,98663.0,0.00852022]
[1735182788732,0.001,98666.0,98663.0,0.00852022]
[1735182788936,0.3628,98668.0,98663.0,0.00852022]
[1735182790427,0.002,98666.0,98663.0,0.01052022]
[1735182790835,0.001,98666.0,98663.0,0.01052022]
[1735182791237,0.3628,98668.0,98663.0,0.01052022]
[1735182791431,0.3618,98668.0,98663.0,0.01052022]
[1735182791628,0.001,98666.0,98663.0,0.01052022]
[1735182791821,0.001,98666.0,98663.0,0.00152022]
[1735182792027,0.002,98666.0,98663.0,0.01052022]
[1735182792228,0.12033174,98676.0,98663.0,0.01052022]
[1735182792428,0.12033174,98676.0,98675.0,0.401371]
[1735182792429,0.06963608,98676.0,98675.0,0.401371]
[1735182792731,0.15032122,98685.0,98675.0,0.3608]
[1735182792930,0.15032122,98685.0,98684.0,0.040567]
[1735182793434,0.15032122,98685.0,98684.0,0.401367]
[1735182793738,0.18053714,98693.0,98684.0,0.3608]
[1735182793939,0.001,98685.0,98684.0,0.3608]
[1735182794139,0.18053714,98693.0,98692.0,0.040564]
[1735182794334,0.3608,98701.0,98696.0,0.040562]
[1735182794538,0.3608,98701.0,98697.0,0.040562]
[1735182796423,0.3608,98701.0,98697.0,0.043562]
[1735182796629,0.3618,98701.0,98697.0,0.043562]
[1735182797728,0.3618,98701.0,98697.0,0.045562]
[1735182798438,0.001,98701.0,98697.0,0.045562]
[1735182799031,0.001,98701.0,98697.0,0.05535497]
[1735182802230,0.001,98701.0,98697.0,0.01479297]
[1735182802431,0.001,98701.0,98699.0,0.040561]
[1735182803526,0.3608,98712.0,98699.0,0.002]
[1735182803728,0.3608,98712.0,98703.0,0.040559]
[1735182803945,0.3608,98712.0,98704.0,0.040559]
[1735182804739,0.3608,98712.0,98708.0,0.040557]
[1735182805133,0.3608,98712.0,98702.0,0.3608]
[1735182805342,0.3608,98712.0,98710.0,0.040556]
[1735182806444,0.3618,98712.0,98710.0,0.040556]
[1735182808635,0.3618,98712.0,98702.0,0.37065307]
[1735182808837,0.3618,98712.0,98703.0,0.04056]
[1735182809046,0.3618,98712.0,98702.0,0.37125307]
[1735182809247,0.3618,98712.0,98705.0,0.040558]
[1735182810039,0.3608,98712.0,98705.0,0.040558]
[1735182810648,0.3608,98712.0,98705.0,0.042558]
[1735182811940,0.3608,98712.0,98710.0,0.040557]
[1735182813247,0.3618,98712.0,98710.0,0.040557]
[1735182813443,0.001,98712.0,98710.0,0.401357]
[1735182817045,0.001,98712.0,98710.0,0.040557]
[1735182819255,0.001,98712.0,98711.0,0.3608]
[1735182821451,0.002,98712.0,98711.0,0.3608]
[1735182821745,0.001,98712.0,98711.0,0.3608]
[1735182821951,0.002,98712.0,98711.0,0.3608]
[1735182822456,0.001,98712.0,98711.0,0.3608]
[1735182822753,0.001,98712.0,98711.0,0.406356]
[1735182823157,0.01308,98715.0,98714.0,0.040555]
[1735182824746,0.01308,98715.0,98714.0,0.22252269]
[1735182825148,0.01308,98715.0,98714.0,0.22452269]
[1735182825459,0.01308,98715.0,98714.0,0.22652269]
[1735182825460,0.01408,98715.0,98714.0,0.22652269]
[1735182826361,0.01308,98715.0,98714.0,0.042555]
[1735182826554,0.01408,98715.0,98714.0,0.044555]
[1735182827259,0.01408,98715.0,98714.0,0.22652269]
[1735182827655,0.01408,98715.0,98714.0,0.23631163]
[1735182828361,0.01308,98715.0,98714.0,0.23431163]
[1735182828654,0.01308,98715.0,98714.0,0.05434394]
[1735182828655,0.01408,98715.0,98714.0,0.05434394]
[1735182829062,0.01308,98715.0,98714.0,0.05234394]
[1735182829261,0.01308,98715.0,98714.0,0.05334394]
[1735182829562,0.01408,98715.0,98714.0,0.05334394]
[1735182829863,0.01408,98715.0,98714.0,0.05234394]
[1735182830062,0.01408,98715.0,98714.0,0.05434394]
[1735182830362,0.01308,98715.0,98714.0,0.05434394]
[1735182831451,0.01308,98715.0,98714.0,0.05334394]
[1735182832158,0.01308,98715.0,98714.0,0.05134394]
[1735182832359,0.01408,98715.0,98714.0,0.05334394]
[1735182832857,0.01308,98715.0,98714.0,0.05334394]
[1735182840858,0.01308,98715.0,98714.0,0.05134394]
[1735182841058,0.01308,98715.0,98714.0,0.05334394]
[1735182841958,0.01308,98715.0,98714.0,0.05234394]
[1735182842367,0.01308,98715.0,98714.0,0.05434394]
[1735182842763,0.01308,98715.0,98714.0,0.05234394]
[1735182842956,0.01308,98715.0,98714.0,0.05334394]
[1735182843858,0.01308,98715.0,98714.0,0.35577382]
[1735182844261,0.01308,98715.0,98714.0,0.35477382]
[1735182844458,0.01308,98715.0,98714.0,0.35677382]
[1735182845268,0.01308,98715.0,98714.0,0.35577382]
[1735182846060,0.3608,98739.0,98715.0,0.17767388]
[1735182846258,0.3608,98739.0,98734.0,0.040547]
[1735182846459,0.12830224,98735.0,98734.0,0.06230364]
[1735182847164,0.3608,98739.0,98738.0,0.040545]
[1735182847470,0.18053714,98741.0,98740.0,0.040544]
[1735182847766,0.0786,98745.0,98741.0,0.040544]
[1735182848165,0.0786,98745.0,98744.0,8e-05]
[1735182849074,0.0896,98745.0,98744.0,8e-05]
[1735182850562,0.126142,98745.0,98744.0,8e-05]
[1735182850762,0.130142,98745.0,98744.0,8e-05]
[1735182851673,0.0896,98745.0,98744.0,8e-05]
[1735182852468,0.0896,98745.0,98744.0,0.01023974]
[1735182852669,0.0896,98745.0,98744.0,8e-05]
[1735182853168,0.011,98745.0,98744.0,8e-05]
[1735182853367,0.27080571,98778.0,98744.0,0.11282609]
[1735182853368,0.00084,98754.0,98744.0,0.11282609]
[1735182853671,0.18053714,98755.0,98753.0,0.040539]
[1735182854070,0.18053714,98755.0,98754.0,8e-05]
[1735182854760,0.18953714,98755.0,98754.0,8e-05]
[1735182855074,0.18953714,98755.0,98754.0,0.18225853]
[1735182855075,0.009,98755.0,98754.0,0.18225853]
[1735182855367,0.009,98755.0,98754.0,0.18325853]
[1735182855665,0.009,98755.0,98754.0,0.22379753]
[1735182856368,0.009,98755.0,98754.0,0.041619]
[1735182859071,0.12048417,98771.0,98754.0,0.30108]
[1735182859373,0.18053714,98784.0,98782.0,0.040527]
[1735182859577,0.18053714,98784.0,98783.0,0.3608]
[1735182859762,0.18053714,98784.0,98783.0,0.36088]
[1735182859964,0.24071619,98799.0,98783.0,0.36088]
[1735182859965,0.24155619,98799.0,98792.0,0.040523]
[1735182860171,0.24155619,98799.0,98792.0,0.401323]
[1735182860471,0.24071619,98799.0,98792.0,0.401403]
[1735182860675,0.2312,98801.0,98792.0,0.401403]
[1735182861178,0.2312,98801.0,98799.0,8e-05]
[1735182861767,0.106,98800.0,98799.0,8e-05]
[1735182862469,0.106,98800.0,98799.0,0.00108]
[1735182862685,0.4668,98800.0,98799.0,0.00108]
[1735182863573,0.4698,98800.0,98799.0,0.00108]
[1735182863780,0.7698,98800.0,98771.0,0.040531]
[1735182864073,0.00016,98774.0,98763.0,0.34296488]
[1735182864476,0.00016,98774.0,98773.0,0.18217853]
[1735182864671,0.00016,98774.0,98768.0,0.18217853]
[1735182864872,0.3608,98769.0,98768.0,0.18217853]
[1735182865080,0.36084,98769.0,98768.0,0.18217853]
[1735182866174,0.36084,98769.0,98754.0,8e-05]
[1735182866175,0.36084,98769.0,98754.0,0.040619]
[1735182866479,4e-05,98755.0,98754.0,0.05050643]
[1735182867783,4e-05,98755.0,98754.0,0.05250643]
[1735182868576,4e-05,98755.0,98754.0,0.05350643]
[1735182870273,4e-05,98755.0,98754.0,0.05150643]
[1735182870472,4e-05,98755.0,98754.0,0.05350643]
[1735182873274,4e-05,98755.0,98754.0,0.05150643]
[1735182873478,4e-05,98755.0,98754.0,0.05350643]
[1735182874887,4e-05,98755.0,98754.0,0.05150643]
[1735182875071,4e-05,98755.0,98754.0,0.05450643]
[1735182875585,0.3608,98769.0,98768.0,0.040533]
[1735182875986,0.3608,98769.0,98768.0,0.040573]
[1735182876986,0.3628,98769.0,98768.0,4e-05]
[1735182878281,0.3648,98769.0,98768.0,4e-05]
[1735182889294,0.37455041,98769.0,98768.0,4e-05]
[1735182890492,0.040538,98755.0,98754.0,8e-05]
[1735182890696,0.401338,98755.0,98754.0,8e-05]
[1735182890894,0.401378,98755.0,98754.0,8e-05]
[1735182891389,0.701378,98755.0,98744.0,0.18217853]
[1735182891593,0.401342,98745.0,98744.0,0.18217853]
[1735182891800,0.401382,98745.0,98744.0,0.18217853]
[1735182892499,0.040545,98738.0,98737.0,0.18217853]
[1735182892804,0.040585,98738.0,98737.0,0.18217853]
[1735182894093,0.041585,98738.0,98737.0,0.18917853]
[1735182894297,0.041585,98738.0,98737.0,0.007]
[1735182894499,0.041585,98738.0,98737.0,0.01]
[1735182897898,0.040546,98735.0,98719.0,0.18217853]
[1735182898097,0.3608,98720.0,98719.0,0.18217853]
[1735182898405,0.401353,98720.0,98719.0,0.18217853]
[1735182898795,0.42294458,98720.0,98719.0,0.18217853]
[1735182899099,0.42294458,98720.0,98719.0,0.19117853]
[1735182899703,0.42294458,98720.0,98719.0,0.18217853]
[1735182899704,0.42494458,98720.0,98719.0,0.18217853]
[1735182899899,0.42494458,98720.0,98719.0,0.006]
[1735182900506,0.42494458,98720.0,98710.0,0.00012137]
[1735182900696,0.401356,98711.0,98710.0,0.00012137]
[1735182901007,0.401356,98711.0,98692.0,0.18217853]
[1735182901008,0.040562,98696.0,98692.0,0.18217853]
[1735182901308,0.040566,98688.0,98687.0,0.18217853]
[1735182901491,0.401366,98688.0,98687.0,0.18217853]
[1735182901694,0.401406,98688.0,98687.0,0.18217853]
[1735182902100,0.40151579,98688.0,98687.0,0.18217853]
[1735182902605,0.40151579,98688.0,98687.0,0.19211901]
[1735182902901,0.40251579,98688.0,98687.0,0.01794048]
[1735182903705,0.40251579,98688.0,98687.0,0.02294048]
[1735182906511,0.40251579,98688.0,98687.0,4.8e-07]
[1735182906802,0.402406,98688.0,98687.0,4.8e-07]
[1735182907398,0.41236313,98688.0,98687.0,4.8e-07]
[1735182908307,0.040575,98665.0,98664.0,0.0802]
[1735182908608,0.40149637,98665.0,98664.0,0.0802]
[1735182909603,0.40249637,98665.0,98664.0,0.0812]
[1735182909812,0.40249637,98665.0,98664.0,0.0862]
[1735182915206,0.40449637,98665.0,98664.0,0.0852]
[1735182915803,0.40449637,98665.0,98664.0,0.0842]
[1735182916112,0.40449637,98665.0,98664.0,0.004]
[1735182916609,0.40449637,98665.0,98655.0,0.0761]
[1735182916610,0.040579,98656.0,98655.0,0.0761]
[1735182916810,0.401379,98656.0,98655.0,0.0761]
[1735182917107,0.401419,98656.0,98655.0,0.0761]
[1735182917706,0.401419,98656.0,98655.0,0.0771]
[1735182920296,0.40149777,98656.0,98655.0,0.001]
[1735182921003,0.040585,98642.0,98639.0,0.00011326]
[1735182921213,0.04058,98655.0,98600.0,0.34290471]
[1735182921214,0.7216,98640.0,98600.0,0.34290471]
[1735182921402,0.401399,98606.0,98605.0,0.19245317]
[1735182921725,0.401439,98606.0,98605.0,0.2068214]
[1735182922011,0.36084,98606.0,98605.0,0.2068214]
[1735182922207,0.00014679,98606.0,98605.0,0.02464287]
[1735182922404,0.00014679,98606.0,98605.0,0.01127464]
[1735182923013,0.00014679,98606.0,98605.0,0.01527464]
[1735182923807,0.401391,98626.0,98605.0,0.01427464]
[1735182924113,0.040591,98626.0,98605.0,0.01427464]
[1735182924311,0.00152165,98632.0,98616.0,0.040595]
[1735182924615,0.00152165,98632.0,98623.0,0.3608]
[1735182924803,0.00011848,98631.0,98624.0,0.0789]
[1735182925204,0.001,98626.0,98624.0,0.0789]
[1735182925517,0.00011848,98631.0,98624.0,0.0789]
[1735182925814,0.00011848,98631.0,98630.0,8e-05]
[1735182927013,0.00111848,98631.0,98630.0,8e-05]
[1735182928111,0.00111848,98631.0,98630.0,0.00108]
[1735182928911,0.00011848,98631.0,98630.0,0.00108]
[1735182929805,0.00111848,98631.0,98630.0,0.01100329]
[1735182932611,0.00111848,98631.0,98630.0,0.00108]
[1735182936509,0.040598,98611.0,98600.0,0.4608]
[1735182936720,0.2295,98631.0,98600.0,0.4608]
[1735182936721,0.3608,98609.0,98600.0,0.54947581]
[1735182936919,4e-05,98601.0,98600.0,0.4608]
[1735182937607,4e-05,98601.0,98600.0,0.47191537]
[1735182938109,0.00104,98601.0,98600.0,0.47191537]
[1735182938614,0.00104,98601.0,98600.0,0.47691537]
[1735182939114,0.00104,98601.0,98600.0,0.47191537]
[1735182939307,0.00204,98601.0,98600.0,0.47691537]
[1735182941919,0.00204,98601.0,98600.0,0.51751737]
[1735182944233,0.00204,98601.0,98600.0,0.51651737]
[1735182944408,0.00104,98601.0,98600.0,0.51151737]
[1735182944614,0.00204,98601.0,98600.0,0.51651737]
[1735182945423,0.00104,98601.0,98600.0,0.51451737]
[1735182946621,0.00104,98601.0,98600.0,0.5570241]
[1735182956535,0.00104,98601.0,98600.0,0.1962241]
[1735182959337,0.00097758,98601.0,98600.0,0.1962241]
[1735182964037,0.00097758,98601.0,98600.0,0.1932241]
[1735182964244,0.3608,98609.0,98600.0,0.1536221]
[1735182964435,0.001,98601.0,98600.0,0.1942241]
[1735182964936,0.3608,98609.0,98602.0,0.040601]
[1735182965327,0.3608,98609.0,98603.0,0.04250673]
[1735182965630,0.3608,98609.0,98604.0,0.04250673]
[1735182966032,0.3608,98609.0,98605.0,0.04250673]
[1735182966750,0.3608,98609.0,98606.0,0.04250673]
[1735182966963,0.00011299,98610.0,98607.0,0.04250673]
[1735182967150,0.040598,98609.0,98607.0,0.04250673]
[1735182967350,0.040598,98609.0,98604.0,0.18217853]
[1735182967351,0.040598,98609.0,98608.0,0.22468526]
[1735182968551,0.043598,98609.0,98608.0,0.22468526]
[1735182969052,0.043598,98609.0,98608.0,0.04250673]
[1735182969453,0.044598,98609.0,98608.0,0.04250673]
[1735182969843,0.004,98609.0,98608.0,0.04250673]
[1735182970257,0.005,98609.0,98607.0,0.22277753]
[1735182970453,0.005,98609.0,98608.0,0.29898526]
[1735182970945,0.003,98609.0,98608.0,0.29898526]
[1735182971146,0.00011299,98610.0,98608.0,0.29898526]
[1735182971357,0.00011299,98610.0,98609.0,0.040598]
[1735182971553,0.00011299,98610.0,98609.0,0.08310473]
[1735182972463,0.00011299,98610.0,98609.0,0.27928959]
[1735182973456,0.00011299,98610.0,98609.0,0.28128959]
[1735182973760,0.00111299,98610.0,98609.0,0.28128959]
[1735182974168,0.00111299,98610.0,98609.0,0.28028959]
[1735182975559,0.00111299,98610.0,98609.0,0.27928959]
[1735182975748,0.00111299,98610.0,98609.0,0.28128959]
[1735182976355,0.00111299,98610.0,98609.0,0.08310473]
[1735182976549,0.00111299,98610.0,98609.0,0.08410473]
[1735182977155,0.00111299,98610.0,98609.0,0.08310473]
[1735182977355,0.00111299,98610.0,98609.0,0.08510473]